[Event "*** Titled Tuesday Blitz"]
[Site "Chess.com"]
[Date "2021.03.09"]
[Round "11"]
[White "Diamantidis_13"]
[Black "Frogo47"]
[Result "1-0"]
[WhiteElo "2385"]
[BlackElo "2502"]
[TimeControl "180+1"]
[EndTime "12:11:07 PST"]
[Termination "Diamantidis_13 won by resignation"]

1. d4 {[%clk 0:03:00.9]} 1... Nf6 {[%clk 0:02:44.5]} 2. c4 {[%clk 0:02:58.8]}
2... g6 {[%clk 0:02:44.4]} 3. Nc3 {[%clk 0:02:58.4]} 3... Bg7 {[%clk 0:02:45.3]}
4. e4 {[%clk 0:02:57.9]} 4... d6 {[%clk 0:02:45.6]} 5. Nf3 {[%clk 0:02:57]} 5...
O-O {[%clk 0:02:46.1]} 6. h3 {[%clk 0:02:57.7]} 6... e5 {[%clk 0:02:45.9]} 7. d5
{[%clk 0:02:57.1]} 7... a5 {[%clk 0:02:46.1]} 8. Bg5 {[%clk 0:02:56.4]} 8... Na6
{[%clk 0:02:43]} 9. g4 {[%clk 0:02:54.8]} 9... Bd7 {[%clk 0:02:42.9]} 10. Nd2
{[%clk 0:02:49.4]} 10... Nc5 {[%clk 0:02:38.4]} 11. Be2 {[%clk 0:02:38.8]} 11...
a4 {[%clk 0:02:31.4]} 12. a3 {[%clk 0:02:36.9]} 12... c6 {[%clk 0:02:28.7]} 13.
Qc2 {[%clk 0:02:34.7]} 13... Qb6 {[%clk 0:02:25.7]} 14. Kf1 {[%clk 0:02:12.2]}
14... Rfc8 {[%clk 0:02:24.8]} 15. Kg2 {[%clk 0:02:10.3]} 15... cxd5 {[%clk
0:02:14.8]} 16. cxd5 {[%clk 0:02:08.8]} 16... Nb3 {[%clk 0:01:55.6]} 17. Nxb3
{[%clk 0:02:06.2]} 17... axb3 {[%clk 0:01:51.5]} 18. Qd3 {[%clk 0:02:06]} 18...
Qd4 {[%clk 0:01:44.8]} 19. Be3 {[%clk 0:01:59.7]} 19... Qxd3 {[%clk 0:01:39]}
20. Bxd3 {[%clk 0:02:00.6]} 20... Be8 {[%clk 0:01:20.3]} 21. Rac1 {[%clk
0:01:56.8]} 21... Nd7 {[%clk 0:00:44]} 22. Nb5 {[%clk 0:01:53.2]} 22... Bf8
{[%clk 0:00:44]} 23. Nc7 {[%clk 0:01:45.9]} 23... Rab8 {[%clk 0:00:42.9]} 24.
Nxe8 {[%clk 0:01:31.7]} 24... Rxe8 {[%clk 0:00:42.4]} 25. Bb5 {[%clk 0:01:31.9]}
25... Red8 {[%clk 0:00:41]} 26. Bxd7 {[%clk 0:01:30]} 26... Rxd7 {[%clk
0:00:40.9]} 27. Rc3 {[%clk 0:01:28.8]} 27... f5 {[%clk 0:00:39.7]} 28. f3 {[%clk
0:01:24.3]} 28... Ra8 {[%clk 0:00:32.9]} 29. Rhc1 {[%clk 0:01:21.3]} 29... Ra4
{[%clk 0:00:31.9]} 30. exf5 {[%clk 0:00:43.1]} 30... gxf5 {[%clk 0:00:31.2]} 31.
Rxb3 {[%clk 0:00:43.3]} 31... e4 {[%clk 0:00:15.4]} 32. f4 {[%clk 0:00:31.9]}
32... Bg7 {[%clk 0:00:12.4]} 33. Rc8+ {[%clk 0:00:30.3]} 33... Kf7 {[%clk
0:00:12.5]} 34. Rb8 {[%clk 0:00:30.8]} 34... Ra5 {[%clk 0:00:09.3]} 35. R8xb7
{[%clk 0:00:29.8]} 35... Rxb7 {[%clk 0:00:09.5]} 36. Rxb7+ {[%clk 0:00:29.9]}
36... Kg8 {[%clk 0:00:09.6]} 37. b4 {[%clk 0:00:22.9]} 37... Rxa3 {[%clk
0:00:09.3]} 38. Bf2 {[%clk 0:00:13]} 38... Rd3 {[%clk 0:00:07.7]} 39. b5 {[%clk
0:00:11.9]} 39... Rxd5 {[%clk 0:00:07.1]} 40. b6 {[%clk 0:00:12.4]} 40... Rb5
{[%clk 0:00:07.5]} 41. Rc7 {[%clk 0:00:09.4]} 41... Rb2 {[%clk 0:00:03.7]} 42.
b7 {[%clk 0:00:09.1]} 42... Bd4 {[%clk 0:00:03.5]} 43. Rc8+ {[%clk 0:00:09.6]}
43... Kf7 {[%clk 0:00:03.3]} 44. b8=Q {[%clk 0:00:10.5]} 44... Rxf2+ {[%clk
0:00:02.7]} 45. Kg3 {[%clk 0:00:11]} 45... Rf3+ {[%clk 0:00:02.6]} 46. Kg2
{[%clk 0:00:09.4]} 46... Rf2+ {[%clk 0:00:02.7]} 47. Kg3 {[%clk 0:00:06.3]}
47... Rf3+ {[%clk 0:00:02.9]} 48. Kh4 {[%clk 0:00:06.9]} 48... Bf6+ {[%clk
0:00:02]} 49. g5 {[%clk 0:00:06.2]} 49... Rxf4+ {[%clk 0:00:02.4]} 50. Kh5
{[%clk 0:00:06.3]} 50... Be5 {[%clk 0:00:02.4]} 51. Qc7+ {[%clk 0:00:05.5]}
51... Ke6 {[%clk 0:00:03.3]} 52. Re8+ {[%clk 0:00:04.8]} 52... Kd5 {[%clk
0:00:04.2]} 53. Qb7+ {[%clk 0:00:04]} 53... Kd4 {[%clk 0:00:05.1]} 54. Qb4+
{[%clk 0:00:03.4]} 54... Ke3 {[%clk 0:00:06]} 55. Rxe5 {[%clk 0:00:03.6]} 55...
Kf3 {[%clk 0:00:06.9]} 56. Qc3+ {[%clk 0:00:03.4]} 56... e3 {[%clk 0:00:06.9]}
57. Rxe3+ {[%clk 0:00:03.2]} 57... Kg2 {[%clk 0:00:07.8]} 58. Qd2+ {[%clk
0:00:03.5]} 58... Rf2 {[%clk 0:00:07.9]} 59. Re2 {[%clk 0:00:04.3]} 59... Rxe2
{[%clk 0:00:07.7]} 60. Qxe2+ {[%clk 0:00:05.2]} 60... Kg3 {[%clk 0:00:08.6]} 61.
Qd3+ {[%clk 0:00:05.7]} 61... Kg2 {[%clk 0:00:08.6]} 62. Qxf5 {[%clk 0:00:05.6]}
62... Kg3 {[%clk 0:00:09.5]} 63. Qxh7 {[%clk 0:00:05.9]} 63... d5 {[%clk
0:00:10.4]} 64. Qg6 {[%clk 0:00:06.8]} 64... d4 {[%clk 0:00:11.2]} 65. Qd6+
{[%clk 0:00:07.5]} 65... Kg2 {[%clk 0:00:11]} 66. Qxd4 {[%clk 0:00:08]} 66...
Kg3 {[%clk 0:00:11.2]} 67. Qg4+ {[%clk 0:00:08.9]} 67... Kf2 {[%clk 0:00:10.8]}
68. g6 {[%clk 0:00:09.8]} 1-0

[Event "*** Titled Tuesday Blitz"]
[Site "Chess.com"]
[Date "2021.03.09"]
[Round "11"]
[White "MustafayevFarid2004"]
[Black "mbojan"]
[Result "1-0"]
[WhiteElo "2474"]
[BlackElo "2608"]
[TimeControl "180+1"]
[EndTime "12:11:09 PST"]
[Termination "MustafayevFarid2004 won by checkmate"]

1. d4 {[%clk 0:03:00.9]} 1... Nf6 {[%clk 0:02:58.9]} 2. c4 {[%clk 0:03:00.8]}
2... c5 {[%clk 0:02:54.6]} 3. d5 {[%clk 0:02:52.9]} 3... b5 {[%clk 0:02:27.5]}
4. a4 {[%clk 0:02:49.6]} 4... Qa5+ {[%clk 0:02:17]} 5. Bd2 {[%clk 0:02:34.8]}
5... b4 {[%clk 0:02:17.1]} 6. f3 {[%clk 0:02:34.6]} 6... d6 {[%clk 0:02:11.2]}
7. e4 {[%clk 0:02:34.4]} 7... g6 {[%clk 0:02:09.5]} 8. Bg5 {[%clk 0:02:25.4]}
8... Bg7 {[%clk 0:02:06.2]} 9. Nd2 {[%clk 0:02:24.8]} 9... Nbd7 {[%clk
0:02:02.2]} 10. Bd3 {[%clk 0:02:19.3]} 10... Bb7 {[%clk 0:01:58.2]} 11. Ne2
{[%clk 0:02:16]} 11... h6 {[%clk 0:01:56.4]} 12. Bf4 {[%clk 0:02:14.1]} 12... g5
{[%clk 0:01:55.5]} 13. Be3 {[%clk 0:02:11.1]} 13... Ne5 {[%clk 0:01:53.6]} 14.
Qb3 {[%clk 0:02:06.9]} 14... O-O-O {[%clk 0:01:47.3]} 15. O-O {[%clk 0:02:04.8]}
15... Qc7 {[%clk 0:01:23.2]} 16. h3 {[%clk 0:01:55.8]} 16... a5 {[%clk
0:01:22.8]} 17. f4 {[%clk 0:01:54.4]} 17... gxf4 {[%clk 0:01:22.5]} 18. Bxf4
{[%clk 0:01:55.3]} 18... Nfd7 {[%clk 0:01:21.9]} 19. Rab1 {[%clk 0:01:50.7]}
19... Rdg8 {[%clk 0:01:21.4]} 20. Nf3 {[%clk 0:01:49.9]} 20... Nxf3+ {[%clk
0:01:18.2]} 21. Rxf3 {[%clk 0:01:50.8]} 21... Kb8 {[%clk 0:01:15.3]} 22. Rbf1
{[%clk 0:01:47.8]} 22... Bc8 {[%clk 0:01:14.2]} 23. Kh1 {[%clk 0:01:28.9]} 23...
Bf6 {[%clk 0:01:10.9]} 24. Bh2 {[%clk 0:01:25.7]} 24... h5 {[%clk 0:01:10.1]}
25. e5 {[%clk 0:01:16.4]} 25... Bxe5 {[%clk 0:00:55.8]} 26. Rxf7 {[%clk
0:01:12.6]} 26... Bxh2 {[%clk 0:00:56.1]} 27. Kxh2 {[%clk 0:01:13.5]} 27... Ne5
{[%clk 0:00:56.7]} 28. R7f4 {[%clk 0:01:12.9]} 28... Qd8 {[%clk 0:00:47.9]} 29.
Re4 {[%clk 0:01:04]} 29... Rg5 {[%clk 0:00:39.7]} 30. Nf4 {[%clk 0:00:55.5]}
30... h4 {[%clk 0:00:33.9]} 31. Qd1 {[%clk 0:00:47.1]} 31... Rhg8 {[%clk
0:00:33.2]} 32. Qe2 {[%clk 0:00:37.9]} 32... Qe8 {[%clk 0:00:19]} 33. Bb1 {[%clk
0:00:34.8]} 33... Qxa4 {[%clk 0:00:16.8]} 34. Nd3 {[%clk 0:00:31]} 34... Rxg2+
{[%clk 0:00:14]} 35. Qxg2 {[%clk 0:00:31.9]} 35... Rxg2+ {[%clk 0:00:14.2]} 36.
Kxg2 {[%clk 0:00:32.8]} 36... Nxd3 {[%clk 0:00:13.3]} 37. Bxd3 {[%clk
0:00:33.7]} 37... Qb3 {[%clk 0:00:13.9]} 38. Rf3 {[%clk 0:00:29.3]} 38... Qxb2+
{[%clk 0:00:13.6]} 39. Re2 {[%clk 0:00:29.5]} 39... Qg7+ {[%clk 0:00:13.5]} 40.
Kf2 {[%clk 0:00:28.2]} 40... a4 {[%clk 0:00:14.1]} 41. Bb1 {[%clk 0:00:25.1]}
41... a3 {[%clk 0:00:13.1]} 42. Ba2 {[%clk 0:00:24]} 42... Qd4+ {[%clk
0:00:08.8]} 43. Kg2 {[%clk 0:00:23.5]} 43... Qg7+ {[%clk 0:00:09.7]} 44. Kf2
{[%clk 0:00:23.3]} 44... Kc7 {[%clk 0:00:09.4]} 45. Bb3 {[%clk 0:00:23.3]} 45...
Kd8 {[%clk 0:00:09.6]} 46. Rfe3 {[%clk 0:00:23.5]} 46... Bd7 {[%clk 0:00:09.9]}
47. Rf3 {[%clk 0:00:23.5]} 47... Be8 {[%clk 0:00:09.8]} 48. Rfe3 {[%clk
0:00:23.2]} 48... Bh5 {[%clk 0:00:09.9]} 49. Rd2 {[%clk 0:00:20.9]} 49... Qf6+
{[%clk 0:00:09.9]} 50. Ke1 {[%clk 0:00:21.3]} 50... Qf4 {[%clk 0:00:10.3]} 51.
Rdd3 {[%clk 0:00:16.9]} 51... Bg6 {[%clk 0:00:10]} 52. Rf3 {[%clk 0:00:15]}
52... Qc1+ {[%clk 0:00:10.9]} 53. Rd1 {[%clk 0:00:15.4]} 53... Bd3 {[%clk
0:00:11.7]} 54. Rxc1 {[%clk 0:00:15.1]} 54... Be4 {[%clk 0:00:11.9]} 55. Re3
{[%clk 0:00:14.4]} 55... Bf5 {[%clk 0:00:11.7]} 56. Kf2 {[%clk 0:00:14.8]} 56...
Bd7 {[%clk 0:00:11.5]} 57. Rce1 {[%clk 0:00:13.8]} 57... Bf5 {[%clk 0:00:11.8]}
58. Rxe7 {[%clk 0:00:13.4]} 58... Bxh3 {[%clk 0:00:12.1]} 59. Rh7 {[%clk
0:00:13]} 59... Bd7 {[%clk 0:00:09.2]} 60. Rxh4 {[%clk 0:00:12.5]} 60... a2
{[%clk 0:00:08.2]} 61. Bxa2 {[%clk 0:00:12.4]} 61... Kc7 {[%clk 0:00:08.8]} 62.
Re7 {[%clk 0:00:12]} 62... b3 {[%clk 0:00:07.4]} 63. Bxb3 {[%clk 0:00:11.6]}
63... Kb6 {[%clk 0:00:08]} 64. Rxd7 {[%clk 0:00:11.6]} 64... Ka5 {[%clk
0:00:07.5]} 65. Rb7 {[%clk 0:00:11.6]} 65... Ka6 {[%clk 0:00:07.5]} 66. Rb5
{[%clk 0:00:12.2]} 66... Ka7 {[%clk 0:00:07.6]} 67. Rh6 {[%clk 0:00:12.2]} 67...
Ka6 {[%clk 0:00:07.7]} 68. Rh1 {[%clk 0:00:12.5]} 68... Ka7 {[%clk 0:00:08.6]}
69. Ra1# {[%clk 0:00:13.1]} 1-0

[Event "*** Titled Tuesday Blitz"]
[Site "Chess.com"]
[Date "2021.03.09"]
[Round "11"]
[White "Guzman70"]
[Black "coco_crc"]
[Result "1-0"]
[WhiteElo "2347"]
[BlackElo "2215"]
[TimeControl "180+1"]
[EndTime "12:11:13 PST"]
[Termination "Guzman70 won by resignation"]

1. e4 {[%clk 0:03:00.9]} 1... e5 {[%clk 0:02:59.7]} 2. Nf3 {[%clk 0:02:59.1]}
2... Nc6 {[%clk 0:03:00]} 3. Bc4 {[%clk 0:02:57.8]} 3... Nf6 {[%clk 0:02:58.7]}
4. d3 {[%clk 0:02:55.6]} 4... Bc5 {[%clk 0:02:56.3]} 5. O-O {[%clk 0:02:53.7]}
5... d6 {[%clk 0:02:56.6]} 6. c3 {[%clk 0:02:52.1]} 6... a6 {[%clk 0:02:56.8]}
7. Bb3 {[%clk 0:02:47.3]} 7... Ba7 {[%clk 0:02:56.4]} 8. Bg5 {[%clk 0:02:41]}
8... h6 {[%clk 0:02:55.8]} 9. Bh4 {[%clk 0:02:41.3]} 9... g5 {[%clk 0:02:54.4]}
10. Bg3 {[%clk 0:02:41.6]} 10... Bg4 {[%clk 0:02:54.1]} 11. Nbd2 {[%clk
0:02:37.9]} 11... Nh5 {[%clk 0:02:52.9]} 12. Nc4 {[%clk 0:02:26.5]} 12... Qf6
{[%clk 0:02:46.4]} 13. Ne3 {[%clk 0:02:24.6]} 13... Bxf3 {[%clk 0:02:45.9]} 14.
Qxf3 {[%clk 0:02:23.9]} 14... Qxf3 {[%clk 0:02:45.8]} 15. gxf3 {[%clk
0:02:24.3]} 15... Ng7 {[%clk 0:02:28.7]} 16. h4 {[%clk 0:02:20.2]} 16... f6
{[%clk 0:02:27]} 17. Nd5 {[%clk 0:02:15.7]} 17... Rf8 {[%clk 0:01:57.7]} 18.
Nxc7+ {[%clk 0:02:12.6]} 18... Kd7 {[%clk 0:01:57.7]} 19. Nxa8 {[%clk
0:02:10.9]} 19... Rxa8 {[%clk 0:01:58.6]} 20. Kg2 {[%clk 0:02:07.2]} 20... Bb6
{[%clk 0:01:48.2]} 21. Rh1 {[%clk 0:02:06.6]} 21... Ne6 {[%clk 0:01:41]} 22.
Bxe6+ {[%clk 0:01:55.9]} 22... Kxe6 {[%clk 0:01:40.7]} 23. hxg5 {[%clk
0:01:56.8]} 23... hxg5 {[%clk 0:01:41.2]} 24. Rh7 {[%clk 0:01:53.6]} 24... Ne7
{[%clk 0:01:38.1]} 25. Rah1 {[%clk 0:01:50.9]} 25... Rf8 {[%clk 0:01:33.8]} 26.
Rg7 {[%clk 0:01:48.9]} 26... Bd8 {[%clk 0:01:19.5]} 27. d4 {[%clk 0:01:41.3]}
27... Kd7 {[%clk 0:01:12.6]} 28. dxe5 {[%clk 0:01:35.7]} 28... dxe5 {[%clk
0:01:13.5]} 29. Rd1+ {[%clk 0:01:32.9]} 29... Ke6 {[%clk 0:01:12.2]} 30. b4
{[%clk 0:01:28.1]} 30... Bb6 {[%clk 0:01:08.5]} 31. c4 {[%clk 0:01:24.3]} 31...
Bc7 {[%clk 0:01:06.7]} 32. c5 {[%clk 0:01:23.9]} 32... Rd8 {[%clk 0:01:02.4]}
33. Rxd8 {[%clk 0:01:21.4]} 33... Bxd8 {[%clk 0:01:03.3]} 34. Rh7 {[%clk
0:01:17.9]} 34... a5 {[%clk 0:00:53.8]} 35. b5 {[%clk 0:01:14.7]} 35... a4
{[%clk 0:00:45.3]} 36. b6 {[%clk 0:01:10.7]} 36... Kd7 {[%clk 0:00:39.6]} 37.
Rh8 {[%clk 0:01:04.9]} 37... Nc6 {[%clk 0:00:36.6]} 38. Kf1 {[%clk 0:01:02.1]}
38... Be7 {[%clk 0:00:34.4]} 39. Rh7 {[%clk 0:00:56.2]} 39... Kc8 {[%clk
0:00:28.7]} 40. Rf7 {[%clk 0:00:54.7]} 40... Kd7 {[%clk 0:00:27.2]} 41. Ke1
{[%clk 0:00:51.6]} 41... Nd8 {[%clk 0:00:27.3]} 42. Rh7 {[%clk 0:00:49.9]} 42...
Ke6 {[%clk 0:00:27.2]} 43. Kd1 {[%clk 0:00:47.4]} 43... Bxc5 {[%clk 0:00:27]}
44. Rh8 {[%clk 0:00:41.4]} 44... Nc6 {[%clk 0:00:18.2]} 45. Rh7 {[%clk
0:00:38.7]} 45... Ne7 {[%clk 0:00:17.2]} 46. Rh8 {[%clk 0:00:37.1]} 46... Nc6
{[%clk 0:00:16.7]} 47. Kc2 {[%clk 0:00:36.1]} 47... Bxb6 {[%clk 0:00:16.4]} 48.
Kc3 {[%clk 0:00:35.5]} 48... Bd4+ {[%clk 0:00:15.9]} 49. Kc4 {[%clk 0:00:35]}
49... Ne7 {[%clk 0:00:11.1]} 50. Kb5 {[%clk 0:00:31.7]} 50... Kd6 {[%clk
0:00:09.8]} 51. Kxa4 {[%clk 0:00:31.1]} 51... Kd7 {[%clk 0:00:08.8]} 52. Kb5
{[%clk 0:00:30.1]} 52... Ke6 {[%clk 0:00:08]} 53. Rb8 {[%clk 0:00:28]} 53... b6
{[%clk 0:00:08.2]} 54. a4 {[%clk 0:00:26.3]} 54... Kd7 {[%clk 0:00:07.4]} 55.
Rb7+ {[%clk 0:00:24.6]} 55... Kd6 {[%clk 0:00:06.8]} 56. Rxb6+ {[%clk
0:00:20.2]} 56... Bxb6 {[%clk 0:00:06]} 57. Kxb6 {[%clk 0:00:21.1]} 57... Nc6
{[%clk 0:00:03.5]} 58. a5 {[%clk 0:00:20.4]} 58... Kd7 {[%clk 0:00:03.4]} 59. a6
{[%clk 0:00:18.9]} 59... Kd6 {[%clk 0:00:03.8]} 60. a7 {[%clk 0:00:16.8]} 60...
Nxa7 {[%clk 0:00:03.7]} 61. Kxa7 {[%clk 0:00:17.4]} 61... Kc5 {[%clk 0:00:04.5]}
62. Kb7 {[%clk 0:00:17.2]} 62... Kc4 {[%clk 0:00:05.4]} 63. Kc6 {[%clk
0:00:17.5]} 63... Kd3 {[%clk 0:00:06.3]} 64. Kd5 {[%clk 0:00:16]} 64... Ke2
{[%clk 0:00:07.2]} 65. Ke6 {[%clk 0:00:16]} 65... Kxf3 {[%clk 0:00:08.1]} 66.
Kxf6 {[%clk 0:00:16.3]} 66... Kxe4 {[%clk 0:00:06.9]} 67. Bxe5 {[%clk
0:00:15.5]} 67... Kf3 {[%clk 0:00:07.2]} 68. Bg3 {[%clk 0:00:15.5]} 68... g4
{[%clk 0:00:08]} 69. Kg5 {[%clk 0:00:15.5]} 69... Kg2 {[%clk 0:00:08.9]} 70.
Kxg4 {[%clk 0:00:15.9]} 1-0

[Event "*** Titled Tuesday Blitz"]
[Site "Chess.com"]
[Date "2021.03.09"]
[Round "11"]
[White "elextranjero00"]
[Black "Sam_ChessMood"]
[Result "0-1"]
[WhiteElo "2664"]
[BlackElo "2873"]
[TimeControl "180+1"]
[EndTime "12:11:14 PST"]
[Termination "Sam_ChessMood won by resignation"]

1. d4 {[%clk 0:02:29.6]} 1... d5 {[%clk 0:02:58.5]} 2. c4 {[%clk 0:02:29.7]}
2... c6 {[%clk 0:02:58.8]} 3. Nf3 {[%clk 0:02:28.1]} 3... Nf6 {[%clk 0:02:58.5]}
4. Nc3 {[%clk 0:02:28.1]} 4... e6 {[%clk 0:02:58.1]} 5. e3 {[%clk 0:02:27.9]}
5... Nbd7 {[%clk 0:02:57.3]} 6. Qc2 {[%clk 0:02:27.9]} 6... Bd6 {[%clk
0:02:56.3]} 7. b3 {[%clk 0:02:28]} 7... O-O {[%clk 0:02:55.8]} 8. Be2 {[%clk
0:02:28.6]} 8... b6 {[%clk 0:02:53.6]} 9. O-O {[%clk 0:02:27.6]} 9... Bb7 {[%clk
0:02:53.9]} 10. Bb2 {[%clk 0:02:28]} 10... Qe7 {[%clk 0:02:54.3]} 11. Rfd1
{[%clk 0:02:25.1]} 11... Rfd8 {[%clk 0:02:53.3]} 12. Rac1 {[%clk 0:02:23.6]}
12... Rac8 {[%clk 0:02:53.4]} 13. Bf1 {[%clk 0:02:21.5]} 13... h6 {[%clk
0:02:52.4]} 14. Qb1 {[%clk 0:02:14.7]} 14... e5 {[%clk 0:02:40.9]} 15. cxd5
{[%clk 0:02:08.9]} 15... cxd5 {[%clk 0:02:21.4]} 16. Nb5 {[%clk 0:01:56.3]}
16... Bb8 {[%clk 0:01:47.5]} 17. Nxe5 {[%clk 0:01:46.3]} 17... Nxe5 {[%clk
0:01:47.2]} 18. dxe5 {[%clk 0:01:46.6]} 18... Bxe5 {[%clk 0:01:46.2]} 19. Bxe5
{[%clk 0:01:42.3]} 19... Qxe5 {[%clk 0:01:42.6]} 20. Nd4 {[%clk 0:01:41.4]}
20... Ne4 {[%clk 0:01:39.9]} 21. Qb2 {[%clk 0:01:38.4]} 21... a5 {[%clk
0:01:33.4]} 22. Bd3 {[%clk 0:01:35.5]} 22... Nc5 {[%clk 0:01:27.6]} 23. Bf1
{[%clk 0:01:29]} 23... h5 {[%clk 0:01:17.6]} 24. b4 {[%clk 0:01:17.4]} 24...
axb4 {[%clk 0:01:12.2]} 25. Qxb4 {[%clk 0:01:17.4]} 25... Qf6 {[%clk 0:01:12.6]}
26. Rb1 {[%clk 0:01:13.9]} 26... Ne4 {[%clk 0:01:04.5]} 27. Rb2 {[%clk
0:00:58.4]} 27... Rd6 {[%clk 0:01:04.2]} 28. Nb5 {[%clk 0:00:49.6]} 28... Rdc6
{[%clk 0:00:59.1]} 29. Qd4 {[%clk 0:00:29]} 29... Rc1 {[%clk 0:00:44.2]} 30.
Qxf6 {[%clk 0:00:20.9]} 30... Nxf6 {[%clk 0:00:40.8]} 31. Rxc1 {[%clk
0:00:18.6]} 31... Rxc1 {[%clk 0:00:40.1]} 32. f3 {[%clk 0:00:16.2]} 32... d4
{[%clk 0:00:17.7]} 33. exd4 {[%clk 0:00:06.1]} 33... h4 {[%clk 0:00:17.7]} 34.
Kf2 {[%clk 0:00:05.1]} 34... h3 {[%clk 0:00:18]} 35. gxh3 {[%clk 0:00:05.1]}
35... Bxf3 {[%clk 0:00:17.5]} 36. Kxf3 {[%clk 0:00:04.4]} 36... Rxf1+ {[%clk
0:00:17.3]} 37. Kg2 {[%clk 0:00:04.7]} 37... Rc1 {[%clk 0:00:13.6]} 38. Nd6
{[%clk 0:00:03.6]} 38... Nd5 {[%clk 0:00:12.3]} 39. Kf3 {[%clk 0:00:03.8]} 39...
Rc6 {[%clk 0:00:10.4]} 40. Ne4 {[%clk 0:00:03.3]} 40... f5 {[%clk 0:00:09.6]}
41. Ng3 {[%clk 0:00:03.2]} 41... Rc3+ {[%clk 0:00:09.5]} 42. Kf2 {[%clk
0:00:03.8]} 42... g6 {[%clk 0:00:07]} 43. Rb3 {[%clk 0:00:02.2]} 43... Rc2+
{[%clk 0:00:06.9]} 44. Kf3 {[%clk 0:00:02.7]} 44... Rxa2 {[%clk 0:00:06.1]} 45.
Rb5 {[%clk 0:00:03]} 45... Ra3+ {[%clk 0:00:06.1]} 46. Kf2 {[%clk 0:00:03.4]}
46... Nf4 {[%clk 0:00:04.9]} 47. Rxb6 {[%clk 0:00:03.4]} 47... Nxh3+ {[%clk
0:00:05.3]} 48. Kg2 {[%clk 0:00:02.8]} 48... Nf4+ {[%clk 0:00:05.5]} 49. Kf2
{[%clk 0:00:03.4]} 49... Kf7 {[%clk 0:00:06]} 50. Rb7+ {[%clk 0:00:03.1]} 50...
Kf6 {[%clk 0:00:06]} 51. Rb6+ {[%clk 0:00:03.6]} 51... Kg5 {[%clk 0:00:06.5]}
52. Rb5 {[%clk 0:00:02.4]} 52... Kg4 {[%clk 0:00:06.4]} 53. Rb6 {[%clk 0:00:02]}
53... g5 {[%clk 0:00:05.9]} 54. Kf1 {[%clk 0:00:01.1]} 54... Ra1+ {[%clk
0:00:04.5]} 55. Kf2 {[%clk 0:00:01.8]} 55... Ra2+ {[%clk 0:00:05]} 56. Ke1
{[%clk 0:00:02.3]} 56... Rxh2 {[%clk 0:00:04.4]} 57. Nf1 {[%clk 0:00:03.2]}
57... Re2+ {[%clk 0:00:04.4]} 58. Kd1 {[%clk 0:00:03.7]} 58... Rf2 {[%clk
0:00:03.9]} 59. Ne3+ {[%clk 0:00:03.8]} 59... Kf3 {[%clk 0:00:04.5]} 60. Nxf5
{[%clk 0:00:04.7]} 60... g4 {[%clk 0:00:04.2]} 61. Rf6 {[%clk 0:00:03.4]} 61...
Rf1+ {[%clk 0:00:03.1]} 62. Kd2 {[%clk 0:00:03.2]} 62... Rf2+ {[%clk 0:00:02.3]}
63. Kc3 {[%clk 0:00:02.9]} 63... Nd5+ {[%clk 0:00:02.6]} 64. Kc4 {[%clk
0:00:03.2]} 64... Nxf6 {[%clk 0:00:03.5]} 0-1